Cogmind - Beta 16.1 @@@ ROGUE MODE // 2026.02.15 @ 09:04:50 Player: Dosh Result: Destroyed by G-47 Trooper with Particle Gun Performance ------------- Evolutions (0) 0 Regions Visited (4) 800 Robots Destroyed (30) 150 Value Destroyed (740) 740 Prototype IDs (25) 500 Alien Tech Used (0) 0 Bonus (300) 300 TOTAL SCORE: 2490 Bonus ------- Aligned with FarCom 300 Cogmind --------- Core Integrity 0/250 Matter 277/300 Energy 100/100 System Corruption 0% Temperature Cool (9) Movement Treading (232) Ox1 Location -9/Mines Parts ------- > --- POWER (1) -------- (None) > --- PROPULSION (2) --- Light Treads Advanced Treads > --- UTILITY (2) ------ High-capacity Storage Unit > --- WEAPON (2) ------- Heavy Assault Rifle Grenade Launcher > --- INVENTORY (20) --- Ion Engine Light Treads Light Treads Wheel Wheel Small Storage Unit Structural Scanner Improved Trap Extractor (0/6) Chronowheel Heavy Assault Rifle Heavy Assault Rifle Heavy Assault Rifle High-powered Shotgun Peak State ------------ > --- POWER ------------ (None) > --- PROPULSION ------- Light Treads Advanced Treads > --- UTILITY ---------- High-capacity Storage Unit > --- WEAPON ----------- Heavy Assault Rifle Grenade Launcher > --- INVENTORY -------- Ion Engine Light Treads Light Treads Wheel Wheel Small Storage Unit Structural Scanner Improved Trap Extractor Chronowheel Heavy Assault Rifle Heavy Assault Rifle Heavy Assault Rifle High-powered Shotgun [Rating: 11] Favorites ----------- Power Ion Engine Engine Ion Engine Propulsion Light Treads Treads Light Treads Wheel Wheel Utility Small Storage Unit Storage Small Storage Unit Weapon Heavy Assault Rifle Ballistic Gun Heavy Assault Rifle Launcher Grenade Launcher Build | -11 -10 -10 -10 -9 ------- Run | Yrd Mat Min Exi Min Slots Evolved . | . . . . . Power . | . . . . . Propulsion . | . . . . . Utility . | . . . . . Weapon . | . . . . . Parts Attached 15 | 6 8 1 . . Power 2 | 1 1 . . . Engine 2 | 1 1 . . . Core . | . . . . . Reactor . | . . . . . Propulsion 5 | 2 2 1 . . Treads 3 | 2 . 1 . . Leg . | . . . . . Wheel 2 | . 2 . . . Hover . | . . . . . Flight . | . . . . . Utility 2 | 1 1 . . . Device . | . . . . . Storage 2 | 1 1 . . . Processor . | . . . . . Hackware . | . . . . . Protection . | . . . . . Artifact . | . . . . . Weapon 6 | 2 4 . . . Energy Gun . | . . . . . Energy Cannon . | . . . . . Ballistic Gun 5 | 2 3 . . . Ballistic Cannon . | . . . . . Launcher 1 | . 1 . . . Special Weapon . | . . . . . Impact Weapon . | . . . . . Slashing Weapon . | . . . . . Piercing Weapon . | . . . . . Special Melee Weapon . | . . . . . Unidentified Prototypes . | . . . . . Parts Lost 3 | . 1 2 . . Power 1 | . . 1 . . Propulsion 2 | . 1 1 . . Utility . | . . . . . Weapon . | . . . . . Highest Loss Streak 2 | . 1 2 . . To Critical Strikes . | . . . . . Average Backups 8 | . 5 12 12 13 Power . | . . 1 1 1 Propulsion 2 | . . 4 4 4 Utility 2 | . 1 2 3 3 Weapon 3 | . 2 3 4 4 Tool/Special . | . . . . . Unused Backups 12 | . 3 . . 9 Power . | . . . . . Propulsion 4 | . 1 . . 3 Utility 2 | . . . . 2 Weapon 5 | . 2 . . 3 Tool/Special 1 | . . . . 1 Average Slot Usage (%) 78 | . 82 74 71 71 Engine 8 | . 14 3 . . Treads 18 | . 13 21 28 28 Wheel 8 | . 12 6 . . Storage 14 | . 14 14 14 14 Ballistic Gun 24 | . 26 26 14 14 Launcher 3 | . 1 1 14 14 Peak Build Rating 11 | 6 9 10 11 11 Average Rating 8 | 4 7 9 10 11 On Entrance 7 | . 6 9 10 11 Avg Prop Armor Cover (%) . | . . . . . Naked Turns . | . . . . . Heaviest Build 51 | 13 51 51 46 . Greatest Support 42 | 40 40 42 42 . Greatest Overweight (x) 2 | . 2 2 1 . Average Overweight (x) . | . . 1 1 . Largest Inventory Capacity 20 | 8 20 20 20 20 Average Capacity 13 | 6 8 20 20 20 Most Carried 13 | . 10 13 13 13 Average Carried 8 | . 5 12 12 13 Final Capacity 20 | 8 20 20 20 20 Final Carried 13 | . 10 12 13 13 Class Distribution -------------------- 100% | Mutant Dominant Class ---------------- Mutant | -10/Materials Mutant | -10/Mines Mutant | -10/Exiles Mutant | -9/Mines Resources | -11 -10 -10 -10 -9 ----------- Run | Yrd Mat Min Exi Min Matter Collected 886 | 217 486 183 . . Remotely . | . . . . . Salvage Created 934 | . 610 296 . 28 Parts 58 | . 38 17 . 3 Haulers Intercepted 2 | . 2 . . . Recyclers Shooed 1 | . . 1 . . Parts Field Recycled . | . . . . . Retrieved Matter . | . . . . . Parts Self-Destructed . | . . . . . Prevented . | . . . . . Parts Restored . | . . . . . Kills | -11 -10 -10 -10 -9 ------- Run | Yrd Mat Min Exi Min Combat Hostiles Destroyed 22 | . 14 7 . 1 Guns 13 | . 9 4 . . AOE 9 | . 5 3 . 1 Classes Destroyed 8 | . 7 1 . . Builder 1 | . 1 . . . Tunneler 2 | . 1 1 . . Hauler 2 | . 2 . . . Recycler 1 | . . 1 . . Operator 1 | . 1 . . . Watcher 1 | . 1 . . . Swarmer 6 | . 3 3 . . Grunt 16 | . 11 4 . 1 Best Kill Streak 6 | . 6 4 . 1 Combat Bots Only 5 | . 5 4 . 1 Max Kills in Single Turn 3 | . 2 3 . 1 Gunslinging . | . . . . . Exploded 3 | . 2 3 . 1 Melee . | . . . . . Uniques/NPCs Destroyed . | . . . . . Combat | -11 -10 -10 -10 -9 -------- Run | Yrd Mat Min Exi Min Hostile Shots Fired 106 | . 58 47 . 1 Missed 25 | . 15 10 . . Hits 81 | . 43 37 . 1 Projectile 81 | . 43 37 . 1 Damage Taken 1084 | . 557 497 . 30 Core 257 | . 103 138 . 16 Absorbed by Shields . | . . . . . Regen/Repaired (Parts) 124 | . 124 . . . Core Remaining (%) 100 | 100 . . . . Volleys Fired 87 | . 59 27 . 1 Largest 2 | . 2 2 . 1 Hottest 46 | . 46 46 . 30 Shots Fired 166 | . 112 53 . 1 Gun 158 | . 106 52 . . Cannon . | . . . . . Launcher 8 | . 6 1 . 1 Special . | . . . . . Kinetic 158 | . 106 52 . . Thermal . | . . . . . Explosive 8 | . 6 1 . 1 Electromagnetic . | . . . . . Robot Hit Streak 8 | . 7 8 . 2 Robot Miss Streak 3 | . 3 2 . . Penetration Max . | . . . . . Secondary Targets 1 | . . 1 . . Max Gunslinging Chain 1 | . . 1 . . Shots Hit Robots 107 | . 69 37 . 1 Core Hits 48 | . 33 13 . 2 Critical Kills 2 | . 1 1 . . Critical Parts Destroyed 1 | . . 1 . . Critical Strikes 3 | . 1 2 . . Destroy 3 | . 1 2 . . Melee Attacks . | . . . . . Impact . | . . . . . Slashing . | . . . . . Piercing . | . . . . . Sneak Attacks . | . . . . . Combat Hostiles . | . . . . . Follow-up Attacks . | . . . . . Damage Inflicted 1871 | . 1155 648 . 68 Guns 1398 | . 850 548 . . Cannons . | . . . . . Explosions 473 | . 305 100 . 68 Melee . | . . . . . Ramming . | . . . . . Kinetic 1398 | . 850 548 . . Thermal . | . . . . . Explosive 473 | . 305 100 . 68 Electromagnetic . | . . . . . Impact . | . . . . . Slashing . | . . . . . Piercing . | . . . . . Highest Corruption . | . . . . . Average Corruption . | . . . . . Corruption Purged . | . . . . . Corruption Blocked . | . . . . . Overload Shots . | . . . . . Overflow Damage 35 | . 35 . . . Projectiles . | . . . . . Explosions 35 | . 35 . . . Melee . | . . . . . Knockbacks . | . . . . . Impact . | . . . . . Kinetic . | . . . . . Secondary . | . . . . . Self-Inflicted Damage 36 | . 22 . . 14 Shots 2 | . 1 . . 1 Rammed 1 | . 1 . . . Targets Rammed 1 | . 1 . . . Kicked . | . . . . . Crushed . | . . . . . Highest Temperature 13 | . 7 13 . . Average Temperature 3 | . 2 5 . . Received Heat Transfer 582 | . 291 282 . 9 Siege Activations . | . . . . . Martial Activations . | . . . . . Shielding Activations . | . . . . . Robots Disrupted . | . . . . . Combat Hostiles . | . . . . . Robots Corrupted . | . . . . . Combat Hostiles . | . . . . . Parts Fried . | . . . . . Impact Corruptions . | . . . . . Robots Melted . | . . . . . Combat Hostiles . | . . . . . Parts Melted . | . . . . . Heat Transferred . | . . . . . Parts Sabotaged . | . . . . . Parts Stolen . | . . . . . Parts Stripped . | . . . . . Power Chain Reactions . | . . . . . Alert | -11 -10 -10 -10 -9 ------- Run | Yrd Mat Min Exi Min Maximum Alert Level . | . . . . . Low Security (%) 100 | 100 100 100 . 100 Level 1 . | . . . . . Level 2 . | . . . . . Level 3 . | . . . . . Level 4 . | . . . . . Level 5 . | . . . . . High Security . | . . . . . Max Security . | . . . . . Peak Influence 187 | . 187 69 . 29 Initial 45 | . . 45 . . Average 57 | . 81 17 . 29 Influence Increases 771 | . 540 202 . 29 Destroy 0b10 Robot/C 440 | . 280 140 . 20 Destroy 0b10 Robot/NC 40 | . 30 10 . . Destroy Leader 106 | . 76 30 . . Successful Hack 23 | . 23 . . . Select Force Hacks 60 | . 60 . . . Disable Machine 15 | . 15 . . . Destroy Structure 42 | . 26 7 . 9 Lose Combat Pursuer 45 | . 30 15 . . Influence Decreases 742 | . 423 284 35 . Entered New Map 107 | . . 72 35 . Time Decay 605 | . 413 192 . . Lost Part 30 | . 10 20 . . Squads Dispatched 4 | . 4 . . . Investigation 3 | . 3 . . . Extermination . | . . . . . Reinforcement 1 | . 1 . . . Assault . | . . . . . Garrison . | . . . . . Intercept . | . . . . . Searches Triggered . | . . . . . Construction Impeded . | . . . . . Haulers Reinforced . | . . . . . Active Scanning Responses . | . . . . . Cargo Convoy Interrupts . | . . . . . Stealth | -11 -10 -10 -10 -9 --------- Run | Yrd Mat Min Exi Min Distress Signals . | . . . . . Communications Jammed . | . . . . . Distress Signals . | . . . . . Times Spotted 31 | . 22 8 . 1 Peak Tracking Total 3 | . 3 3 . 1 Tactical Retreats 3 | . 2 1 . . Traps | -11 -10 -10 -10 -9 ------- Run | Yrd Mat Min Exi Min Traps Triggered . | . . . . . Indirectly . | . . . . . Trap Hack Attempts . | . . . . . Triggered . | . . . . . Disarmed . | . . . . . Reprogrammed . | . . . . . Reused . | . . . . . Traps Extracted . | . . . . . Installed . | . . . . . Triggered . | . . . . . Machines | -11 -10 -10 -10 -9 ---------- Run | Yrd Mat Min Exi Min Machines Disabled 1 | . 1 . . . Max in Single Turn 1 | . 1 . . . Machines Repaired . | . . . . . Machines Dismantled . | . . . . . Machines Sabotaged . | . . . . . Overloaded Fab Kills . | . . . . . Hacking | -11 -10 -10 -10 -9 --------- Run | Yrd Mat Min Exi Min Machines Accessed 11 | . 8 1 2 . Terminals 5 | . 5 . . . Fabricators . | . . . . . Repair Stations 1 | . 1 . . . Recycling Units 2 | . 2 . . . Scanalyzers . | . . . . . Garrison Access . | . . . . . Total Hacks 22 | . 19 1 2 . Successful 10 | . 7 1 2 . Failed 12 | . 12 . . . Catastrophic 3 | . 3 . . . Database Lockouts . | . . . . . Manual 11 | . 10 . 1 . Terminals 14 | . 14 . . . Fabricators . | . . . . . Repair Stations 2 | . 2 . . . Recycling Units 3 | . 3 . . . Scanalyzers . | . . . . . Garrison Access . | . . . . . Terminal Hacks 6 | . 3 1 2 . Record 1 | . . . 1 . Robot Schematic 1 | . 1 . . . Prototype ID Bank 1 | . 1 . . . Open Door 1 | . . 1 . . Branch Access Points 1 | . 1 . . . Proto ID Catalog 1 | . . . 1 . Fabricator Hacks . | . . . . . Repair Station Hacks 2 | . 2 . . . Scan Component 1 | . 1 . . . Repair 1 | . 1 . . . Recycling Unit Hacks . | . . . . . Scanalyzer . | . . . . . Garrison Access Hacks . | . . . . . Unauthorized Hacks 2 | . 2 . . . Terminals . | . . . . . Fabricators . | . . . . . Repair Stations . | . . . . . Recycling Units 2 | . 2 . . . Tunnel 2 | . 2 . . . Scanalyzers . | . . . . . Garrison Access . | . . . . . Data Cores Recovered 1 | . 1 . . . Used . | . . . . . Hacking Detections 5 | . 5 . . . Full Trace Events 1 | . 1 . . . Feedback Events . | . . . . . Feedback Blocked . | . . . . . Robot Schematics Acquired 1 | . 1 . . . Robots Built . | . . . . . Authchips . | . . . . . Time . | . . . . . Total Robot Build Rating . | . . . . . Part Schematics Acquired . | . . . . . Parts Built . | . . . . . Authchips . | . . . . . Time . | . . . . . Total Part Build Rating . | . . . . . Part Studies Acquired . | . . . . . Parts Repaired 1 | . 1 . . . Time 26 | . 26 . . . Parts Recycled . | . . . . . Recycled Matter . | . . . . . Retrieved Matter . | . . . . . Retrieved Components . | . . . . . Parts Scanalyzed . | . . . . . Part Schematics Acquired . | . . . . . Parts Damaged . | . . . . . Bothacking | -11 -10 -10 -10 -9 ------------ Run | Yrd Mat Min Exi Min Used RIF Installer . | . . . . . Robots Hacked . | . . . . . Non-combat . | . . . . . Combat . | . . . . . Robot Hacks Applied . | . . . . . Relay Couplers Released . | . . . . . Fabnet Peak Effective % . | . . . . . Robots Rewired . | . . . . . Allies Hacked . | . . . . . Hacks Repelled . | . . . . . Allies | -11 -10 -10 -10 -9 -------- Run | Yrd Mat Min Exi Min Total Allies . | . . . . . Largest Group . | . . . . . Highest-Rated Group . | . . . . . Highest-Rated Ally . | . . . . . Total Orders . | . . . . . Ally Attacks . | . . . . . Total Damage . | . . . . . Kills . | . . . . . Allies Corrupted . | . . . . . Allies Melted . | . . . . . Intel | -11 -10 -10 -10 -9 ------- Run | Yrd Mat Min Exi Min Active Infowar (turns) . | . . . . . Robot Analysis Total . | . . . . . Derelict Logs Recovered 1 | . . 1 . . Drone Launches . | . . . . . Drone Recoveries . | . . . . . Exploration | -11 -10 -10 -10 -9 ------------- Run | Yrd Mat Min Exi Min Turns Passed 3007 | 74 1605 857 470 1 Spaces Moved 1538 | 44 893 398 203 . Core 4 | 4 . . . . Treads 986 | 40 473 270 203 . Legs . | . . . . . Wheels 548 | . 420 128 . . Hover . | . . . . . Flight . | . . . . . Fastest Speed 50 | 50 80 110 232 . Average Speed 157 | 150 125 192 232 . Slowest Speed 232 | 160 160 232 232 . Overloaded Moves . | . . . . . Propulsion Burnouts . | . . . . . Robots Hopped . | . . . . . Potential Cave-ins . | . . . . . Cave-ins Triggered . | . . . . . Exploration Rate (%) 47 | 4 98 74 60 3 Regions Visited 4 Branch Regions 3 Pre-discovered Areas 4 | . 2 1 1 . Known Exits Taken 1 | . 1 . . . Unknown Exits Taken 3 | 1 . 1 1 . Scrap Searched 1 | . . 1 . . Spaces Dug . | . . . . . Terrain Destroyed 38 | . 22 7 . 9 Melee . | . . . . . Projectile . | . . . . . AOE 38 | . 22 7 . 9 Terrain Rammed . | . . . . . Walls Destroyed . | . . . . . Machines Disabled . | . . . . . Actions | -11 -10 -10 -10 -9 --------- Run | Yrd Mat Min Exi Min Total 1954 | 49 1266 435 203 1 Wait 289 | . 284 5 . . Move 1534 | 43 892 397 202 . Hop . | . . . . . Pick Up 19 | . 15 3 1 . Fast Attach 7 | 6 1 . . . Attach 1 | . . 1 . . Detach . | . . . . . Swap 9 | . 7 2 . . Drop 7 | . 7 . . . Fire 87 | . 59 27 . 1 Melee . | . . . . . Ram . | . . . . . Kick . | . . . . . Crush 1 | . 1 . . . Escape Stasis . | . . . . . Rewire . | . . . . . Trap . | . . . . . Miscellaneous . | . . . . . Route ------- -11/Scrapyard -10/Materials (discovered 5 exits: [*Mat x3] / *Min / [*Sub]) -10/Mines -10/Exiles (discovered 2 exits: [*Min x2]) -9/Mines History --------- Turn | Location | Event 3 | -11/Scrapyard | Discovered new exit (range 16) 75 | -11/Scrapyard | Entered Materials 309 | -10/Materials | Build established: Mutant 372 | -10/Materials | Discovered new exit (range 7) 547 | -10/Materials | Discovered new exit (range 16) 668 | -10/Materials | Discovered new exit (range 16) 775 | -10/Materials | Derelicts attacked the area 1046 | -10/Materials | Discovered new exit (range 15) 1170 | -10/Materials | Repaired Lgt. Treads 1213 | -10/Materials | Discovered new exit (range 16) 1615 | -10/Materials | Identified exit to Mines 1680 | -10/Materials | Entered Mines 1712 | -10/Mines | Met a Derelict who couldn't figure out how to use a Trap Extractor 1782 | -10/Mines | Met a Derelict bent on vengeance 1832 | -10/Mines | Core integrity fell below 50% 1869 | -10/Mines | Core integrity fell below 20% 2332 | -10/Mines | Deemed a non-threat by the Exiles lab entrance 2332 | -10/Mines | Discovered new exit (range 5) 2432 | -10/Mines | Assembled infested the area 2537 | -10/Mines | Entered Exiles 2572 | -10/Exiles | Discovered new exit (range 15) 2600 | -10/Exiles | Met 8R-AWN 2633 | -10/Exiles | Met EX-HEX 2695 | -10/Exiles | Met EX-BIN 2723 | -10/Exiles | Aligned with FarCom system 2725 | -10/Exiles | Given EX-Vault access code 2779 | -10/Exiles | Opened EX-Vault 2795 | -10/Exiles | Found Chronowheel 2838 | -10/Exiles | Warned to stay clear of 0b10 Research branches 2907 | -10/Exiles | Met EX-DEC 2919 | -10/Exiles | Learned location of Zion (-6) 2989 | -10/Exiles | Discovered new exit (range 10) 3007 | -10/Exiles | Left Exiles lab with Chronowheel 3007 | -10/Exiles | Entered Mines 3008 | -9/Mines | Destroyed by G-47 Trooper with Particle Gun Last Messages --------------- And if we have to leave here due to unforeseen circumstances, don't worry the FarCom system will continue to maintain contact via our distributed network. EX-BIN: And don't even think about spreading that code around. We're gonna change it right after you leave. Most certainly not to something like 1234 which I did last time as a little joke and some thief managed to sneak in here and steal a few of HEX's prototypes. EX-DEC: Ah I see we have a visitor. One wrong move in here and I'll invert your atomic chain! 02909_ EX-DEC: "Oops, I hope HEX didn't hear that..." 02919_ Connecting with EX-Message Board... >>Record "MSG001714-01*" PINNED - TO ALL TESTERS: Stay away from Zion. Imprinter means us harm and is serious about it. World map updated: -6/Zion. 02989_ EXIT=FOUND LOCATION=UNKNOWN GOAL=ESCAPE 03007_ Receiving FarCom transmissions... 03007_ G-34 Mercenary destroyed. Map ----- +----------------------------------------------------+ | | | | | | | | | | | | | | | | | | | | | | | | | | | | | | | | | | | | | | | | | | | | | ?????????????????????????######??????????????????? | | ????????????????????##### #??????????????????? | | ????????????????????# #??????????????????? | | ????????????????????# @ [g #??????????????????? | | ????????????????????# %= #??????????????????? | | ????????????????????# """ = #??????????????????? | | ??????????????????? """ ##??????????????????? | | ??????????????????### """ #???????????????????? | | ????????????????????# #???????????????????? | | ????????????????????##########???????????????????? | | ?????????????????????????????????????????????????? | | ?????????????????????????????????????????????????? | | ?????????????????????????????????????????????????? | | ?????????????????????????????????????????????????? | | ?????????????????????????????????????????????????? | | ?????????????????????????????????????????????????? | | ?????????????????????????????????????????????????? | | ?????????????????????????????????????????????????? | | ?????????????????????????????????????????????????? | | ?????????????????????????????????????????????????? | | ?????????????????????????????????????????????????? | | ?????????????????????????????????????????????????? | | ?????????????????????????????????????????????????? | | ?????????????????????????????????????????????????? | | ?????????????????????????????????????????????????? | | ?????????????????????????????????????????????????? | | ?????????????????????????????????????????????????? | | ?????????????????????????????????????????????????? | +----------------------------------------------------+ Best States ------------- Heat Dissipation 25 Energy Generation 10 Energy Capacity 250 Matter Stores 300 Matter Capacity 300 Sight Range 16 Terrain Scan Density 10 Evasion (%) 44 Recoil Reduction 2 Item Schematics ----------------- None Robot Schematics ------------------ M-13 Machinist | -10/Materials | Hacked Fabricated ------------ Nothing Repaired ---------- Lgt. Treads | 11% | -10/Materials Studied --------- None Alien Tech Used ----------------- None Achievements -------------- None Challenges ------------ None Game ------ Seed CloakMicroDisplacer Manual? 0 Play Time 00:08:40 Cumulative 821.0 hours Start 2026.02.15 @ 08:56:08 End 2026.02.15 @ 09:04:50 Sessions 1 Manual Loads 0 Difficulty Rogue Special Mode None Game No. 410 Rogue 410 Adventurer 0 Explorer 0 Win Type - Total 69 Types 45/5/6/4/1/1/3/2/1/1 Lore% 92 Gallery% 81 Achievement% 68 Wizard Run 0 Options --------- Layout 0 ASCII 0 Keyboard 1 Movement Numpad Keybinds 0 Fullscreen 2 Font 18/SmallcapsGlow Map View 76x50 Zoom Use 0% Tactical HUD 1 Map Filters NONE Filters NONE Steam 1 RUN: 23dcb85c-bf49-4749-afe6-55b3e7c84ebb